bitfinex/quotes_BTCUSD_20240906
["timestamp","ask_amount","ask_price","bid_price","bid_amount"]
[1725605775396,0.353265,56615.0,56598.0,0.08766]
[1725605775397,1.23677,56599.0,56598.0,0.08766]
[1725605776306,1.28964909,56599.0,56598.0,0.08766]
[1725605776526,1.23677,56599.0,56598.0,0.08766]
[1725605778360,1.23777,56599.0,56598.0,0.09566]
[1725605778590,1.26647896,56599.0,56598.0,0.10366]
[1725605783192,1.26647896,56599.0,56598.0,0.25556]
[1725605784552,1.26647896,56599.0,56598.0,0.257192]
[1725605788360,0.91311596,56599.0,56598.0,0.257192]
[1725605791683,0.20638996,56599.0,56598.0,0.257192]
[1725605791903,0.02970896,56599.0,56598.0,0.787245]
[1725605792160,0.02970896,56599.0,56598.0,0.27164414]
[1725605792599,0.02970896,56599.0,56598.0,0.44832814]
[1725605795043,0.02970896,56599.0,56598.0,0.27164414]
[1725605795263,0.20638996,56599.0,56598.0,0.27164414]
[1725605795744,0.55975296,56599.0,56598.0,0.27164414]
[1725605796176,0.91311596,56599.0,56598.0,0.257192]
[1725605796408,0.91311596,56599.0,56598.0,0.27164414]
[1725605797045,1.26647896,56599.0,56598.0,0.27164414]
[1725605797267,1.26647896,56599.0,56598.0,0.174992]
[1725605797903,1.26647896,56599.0,56598.0,0.105292]
[1725605803567,1.31930828,56599.0,56598.0,0.105292]
[1725605804450,1.32716099,56599.0,56598.0,0.105292]
[1725605805548,1.32716099,56599.0,56598.0,0.255592]
[1725605805549,1.05304197,56599.0,56598.0,0.255592]
[1725605805764,0.97379799,56599.0,56598.0,0.255592]
[1725605805991,0.91311596,56599.0,56598.0,0.27004414]
[1725605806541,0.97380528,56599.0,56598.0,0.27004414]
[1725605806728,1.05304926,56599.0,56598.0,0.27004414]
[1725605807193,1.05304926,56599.0,56598.0,0.255592]
[1725605807418,1.36637084,56599.0,56598.0,0.255592]
[1725605807634,1.47202949,56599.0,56598.0,0.255592]
[1725605807880,1.82539249,56599.0,56598.0,0.170292]
[1725605808526,1.71973384,56599.0,56598.0,0.105292]
[1725605809462,1.85214813,56599.0,56598.0,0.105292]
[1725605809882,1.71973977,56599.0,56598.0,0.105292]
[1725605811462,1.36637677,56599.0,56598.0,0.255592]
[1725605813812,1.36637677,56599.0,56598.0,0.27004414]
[1725605814477,1.36637912,56599.0,56598.0,0.27004414]
[1725605814685,1.36637912,56599.0,56598.0,0.255592]
[1725605815764,1.36637912,56599.0,56598.0,0.27004414]
[1725605819100,0.48297212,56599.0,56598.0,0.27004414]
[1725605819365,0.4222828,56599.0,56598.0,0.27004414]
[1725605819584,0.5283877,56599.0,56598.0,0.27004414]
[1725605820650,0.42222705,56599.0,56598.0,0.27004414]
[1725605821286,0.42222705,56599.0,56598.0,0.44672814]
[1725605821505,0.42222705,56599.0,56598.0,0.80009714]
[1725605821506,0.52841301,56599.0,56598.0,0.80009714]
[1725605821766,0.52841301,56599.0,56598.0,0.44672814]
[1725605823955,0.52841301,56599.0,56598.0,0.80009714]
[1725605824167,0.52841301,56599.0,56598.0,0.44672814]
[1725605824579,0.52837864,56599.0,56598.0,1.16346614]
[1725605824804,0.02970896,56599.0,56598.0,1.16346614]
[1725605825396,0.08278402,56599.0,56598.0,1.53983514]
[1725605825626,0.02970896,56599.0,56598.0,1.53983514]
[1725605826395,0.02870896,56599.0,56598.0,1.53183514]
[1725605826830,0.02970896,56599.0,56598.0,1.54483514]
[1725605827265,0.02870896,56599.0,56598.0,1.53683514]
[1725605827490,0.02870896,56599.0,56598.0,1.55083514]
[1725605827759,0.02870896,56599.0,56598.0,1.17446614]
[1725605828205,0.20538996,56599.0,56598.0,0.28104414]
[1725605828474,1.0839929,56599.0,56598.0,0.13074414]
[1725605828693,1.36510637,56599.0,56598.0,0.13074414]
[1725605828904,1.71846937,56599.0,56598.0,0.116292]
[1725605829120,1.36510637,56599.0,56598.0,0.116292]
[1725605833437,1.09926887,56599.0,56598.0,0.116292]
[1725605833698,1.12697617,56599.0,56598.0,0.116292]
[1725605833918,1.30365717,56599.0,56598.0,0.116292]
[1725605834351,1.65702017,56599.0,56598.0,0.116292]
[1725605834571,1.80425009,56599.0,56598.0,0.116292]
[1725605834795,1.88625009,56599.0,56598.0,0.116292]
[1725605835230,1.88625009,56599.0,56598.0,0.103292]
[1725605835649,1.88625009,56599.0,56598.0,0.110292]
[1725605836337,1.5543529,56599.0,56598.0,0.110292]
[1725605836760,1.5543529,56599.0,56598.0,0.103292]
[1725605837208,1.5543529,56599.0,56598.0,0.089292]
[1725605837469,1.57048513,56599.0,56598.0,0.095292]
[1725605837685,2.08302439,56599.0,56598.0,0.095292]
[1725605837897,2.12813347,56599.0,56598.0,0.089292]
[1725605838089,2.46110741,56599.0,56598.0,0.094292]
[1725605838342,2.81447041,56599.0,56598.0,0.094292]
[1725605838559,1.2389,56593.0,56592.0,0.00163]
[1725605838807,1.7761,56593.0,56592.0,0.00163]
[1725605839451,1.80381355,56593.0,56592.0,0.00163]
[1725605839884,1.80381355,56593.0,56592.0,0.00463]
[1725605840545,1.84918142,56593.0,56592.0,0.00663]
[1725605840767,1.84918142,56593.0,56592.0,0.00463]
[1725605841214,1.84918142,56593.0,56592.0,0.00263]
[1725605841430,1.84918142,56593.0,56592.0,0.00163]
[1725605841653,1.85018142,56593.0,56592.0,0.00363]
[1725605841870,2.79766393,56593.0,56592.0,0.00363]
[1725605842080,2.79666393,56593.0,56592.0,0.00163]
[1725605842558,2.80066393,56593.0,56592.0,0.00163]
[1725605842767,2.54162106,56593.0,56592.0,0.00163]
[1725605842989,2.71832106,56593.0,56592.0,0.00163]
[1725605843209,1.78431261,56593.0,56592.0,0.00163]
[1725605843429,1.99431261,56593.0,56592.0,0.00163]
[1725605844164,1.99631261,56593.0,56592.0,0.00163]
[1725605844353,2.01387247,56593.0,56592.0,0.00163]
[1725605845554,2.01187247,56593.0,56592.0,0.00163]
[1725605845795,1.95303054,56593.0,56592.0,0.00163]
[1725605846723,1.95103054,56593.0,56592.0,0.00163]
[1725605848624,2.02393654,56593.0,56592.0,0.00163]
[1725605852701,1.72993654,56593.0,56592.0,0.00163]
[1725605852930,1.78906115,56593.0,56592.0,0.00163]
[1725605855026,1.79106115,56593.0,56592.0,0.00163]
[1725605855995,1.79187715,56593.0,56592.0,0.00163]
[1725605858031,1.76926817,56593.0,56592.0,0.00163]
[1725605858268,0.883702,56580.0,56579.0,0.070232]
[1725605858516,1.31652611,56580.0,56579.0,0.070232]
[1725605858739,1.34297381,56580.0,56579.0,0.070232]
[1725605859211,1.37069146,56580.0,56579.0,0.070232]
[1725605859629,1.26490065,56580.0,56579.0,0.070232]
[1725605860002,1.3706669,56580.0,56579.0,0.070232]
[1725605860225,1.08816065,56580.0,56579.0,0.070232]
[1725605860394,1.08816065,56580.0,56579.0,0.001632]
[1725605860395,1.47065884,56580.0,56579.0,0.001632]
[1725605860597,1.36590065,56580.0,56579.0,0.011632]
[1725605860783,1.73118165,56580.0,56579.0,0.011632]
[1725605860986,1.79224637,56580.0,56579.0,0.011632]
[1725605861195,1.79424637,56580.0,56579.0,0.023632]
[1725605861408,2.16278806,56580.0,56579.0,0.001632]
[1725605861624,1.80930706,56580.0,56579.0,0.002632]
[1725605861833,1.80930706,56580.0,56579.0,0.003632]
[1725605862041,1.80930706,56580.0,56579.0,0.002632]
[1725605862259,1.85130706,56580.0,56579.0,0.001632]
[1725605862481,1.84750706,56580.0,56579.0,0.001632]
[1725605862686,1.97764387,56580.0,56579.0,0.001632]
[1725605863748,1.96764387,56580.0,56579.0,0.067532]
[1725605863971,1.96764387,56580.0,56579.0,0.154932]
[1725605863972,1.42296134,56580.0,56579.0,0.154932]
[1725605864234,1.42396134,56580.0,56579.0,0.154932]
[1725605864470,1.47679654,56580.0,56579.0,0.154932]
[1725605864680,1.46373585,56580.0,56579.0,0.155932]
[1725605864897,1.36490065,56580.0,56579.0,0.154932]
[1725605865140,1.01941965,56580.0,56579.0,0.155932]
[1725605865346,1.01941965,56580.0,56579.0,0.157932]
[1725605865549,1.01141965,56580.0,56579.0,0.156932]
[1725605865797,1.36490065,56580.0,56579.0,0.157932]
[1725605868053,1.01141965,56580.0,56579.0,0.157932]
[1725605870362,1.06428198,56580.0,56579.0,0.157932]
[1725605870606,1.07248026,56580.0,56579.0,0.157932]
[1725605871523,1.15177376,56580.0,56579.0,0.157932]
[1725605872464,1.07248026,56580.0,56579.0,0.157932]
[1725605875531,1.20487509,56580.0,56579.0,0.157932]
[1725605875962,0.71899926,56580.0,56579.0,0.157932]
[1725605876176,0.18877826,56580.0,56579.0,0.157932]
[1725605876425,0.08067914,56580.0,56579.0,1.041652]
[1725605876637,0.02771765,56580.0,56579.0,1.05614751]
[1725605877304,0.02771765,56580.0,56579.0,0.70265951]
[1725605877529,0.02771765,56580.0,56579.0,0.70165951]
[1725605877953,0.02771765,56580.0,56579.0,0.69965951]
[1725605878160,0.02771765,56580.0,56579.0,0.70065951]
[1725605878363,0.02771765,56580.0,56579.0,1.05614751]
[1725605878597,0.02771765,56580.0,56579.0,1.05414751]
[1725605878796,0.02771765,56580.0,56579.0,1.05314751]
[1725605879011,0.02771765,56580.0,56579.0,1.06714751]
[1725605879628,0.02771765,56580.0,56579.0,0.71365951]
[1725605880075,0.02871765,56580.0,56579.0,0.72765951]
[1725605880500,0.08172491,56580.0,56579.0,0.72765951]
[1725605881971,0.08254191,56580.0,56579.0,0.72765951]
[1725605882454,0.02953465,56580.0,56579.0,0.72765951]
[1725605882660,0.08256514,56580.0,56579.0,0.72765951]
[1725605883947,0.05303489,56582.0,56579.0,0.48501551]
[1725605884158,0.05303489,56582.0,56580.0,0.0694]
[1725605884375,0.05303489,56582.0,56580.0,0.08389323]
[1725605884592,0.176732,56583.0,56580.0,0.26063223]
[1725605884814,0.0530354,56582.0,56581.0,0.0694]
[1725605885024,0.0540354,56582.0,56581.0,0.08389095]
[1725605885442,0.08175127,56582.0,56581.0,0.08389095]
[1725605885867,0.08175127,56582.0,56581.0,0.26062795]
[1725605886120,0.08175127,56582.0,56581.0,0.70270295]
[1725605886341,0.08075127,56582.0,56581.0,1.06917795]
[1725605887219,0.08175127,56582.0,56581.0,1.08117795]
[1725605887664,0.02871587,56582.0,56581.0,1.08117795]
[1725605888301,0.08175127,56582.0,56581.0,1.08117795]
[1725605888515,0.02871587,56582.0,56581.0,1.08117795]
[1725605890233,0.02871587,56582.0,56581.0,1.43465295]
[1725605890448,0.02871587,56582.0,56581.0,1.44465295]
[1725605890662,0.0538514,56593.0,56592.0,0.176703]
[1725605890882,0.000816,56593.0,56592.0,0.69307483]
[1725605891722,0.000816,56593.0,56592.0,0.33966883]
[1725605891944,0.000816,56593.0,56592.0,0.34066883]
[1725605892608,0.000816,56593.0,56592.0,0.69407483]
[1725605893034,0.000816,56593.0,56592.0,0.34066883]
[1725605894124,0.02852733,56593.0,56592.0,0.34066883]
[1725605895739,0.02852733,56593.0,56592.0,0.69407483]
[1725605896403,0.02852733,56593.0,56592.0,1.04748083]
[1725605896610,0.22963013,56597.0,56595.0,0.0654]
[1725605896899,0.176688,56597.0,56596.0,0.0144567]
[1725605897923,0.180688,56597.0,56596.0,0.0144567]
[1725605898192,0.184688,56597.0,56596.0,0.0144567]
[1725605898630,0.184687,56597.0,56596.0,0.1629567]
[1725605898852,0.534062,56597.0,56596.0,0.1629567]
[1725605899289,0.534062,56597.0,56596.0,0.1485]
[1725605899502,0.538062,56597.0,56596.0,0.1485]
[1725605899711,0.530062,56597.0,56596.0,0.1485]
[1725605899929,0.530062,56597.0,56596.0,0.1629567]
[1725605900165,0.534062,56597.0,56596.0,0.1629567]
[1725605901218,0.530062,56597.0,56596.0,0.1649567]
[1725605901482,0.530062,56597.0,56596.0,0.1659567]
[1725605902361,0.530062,56597.0,56596.0,0.0174567]
[1725605903038,0.883437,56597.0,56596.0,0.0174567]
[1725605903259,0.91114788,56597.0,56596.0,0.0174567]
[1725605903479,0.91114788,56597.0,56596.0,0.003]
[1725605903692,0.91114788,56597.0,56596.0,0.0174567]
[1725605903883,0.91114788,56597.0,56596.0,0.003]
[1725605904091,0.91114788,56597.0,56596.0,0.0174567]
[1725605907115,0.91114788,56597.0,56596.0,0.003]
[1725605907550,0.96404013,56597.0,56596.0,0.003]
[1725605909517,0.91114788,56597.0,56596.0,0.003]
[1725605909724,1.26452288,56597.0,56596.0,0.003]
[1725605911216,1.32521251,56597.0,56596.0,0.003]
[1725605911424,1.45744315,56597.0,56596.0,0.003]
[1725605911631,1.32521251,56597.0,56596.0,0.003]
[1725605912062,1.35851251,56597.0,56596.0,0.003]
[1725605913836,1.37402133,56597.0,56596.0,0.003]
[1725605916702,1.34072133,56597.0,56596.0,0.003]
[1725605919189,0.98734633,56597.0,56596.0,0.152832]
[1725605919411,1.104333,56597.0,56596.0,0.152832]
[1725605919721,1.10435654,56597.0,56596.0,0.152832]
[1725605919949,1.10435654,56597.0,56596.0,0.1672887]
[1725605920177,0.22091954,56597.0,56596.0,0.1672887]
[1725605920426,0.39760654,56597.0,56596.0,0.1672887]
[1725605921397,0.22091954,56597.0,56596.0,0.1672887]
[1725605921615,0.26508751,56597.0,56596.0,0.1672887]
[1725605923579,0.08840051,56597.0,56596.0,0.1672887]
[1725605924009,0.26508751,56597.0,56596.0,0.1672887]
[1725605924225,0.08840051,56597.0,56596.0,0.1672887]
[1725605924645,0.26508751,56597.0,56596.0,0.1672887]
[1725605925482,0.08840051,56597.0,56596.0,0.1672887]
[1725605926181,0.26508751,56597.0,56596.0,0.1672887]
[1725605926414,0.08840051,56597.0,56596.0,0.6973597]
[1725605926643,0.22101531,56597.0,56596.0,0.6973597]
[1725605926856,0.02771088,56597.0,56596.0,0.6973597]
[1725605927066,0.10727778,56597.0,56596.0,0.6973597]
[1725605927763,0.10727778,56597.0,56596.0,0.6963597]
[1725605927974,0.10727778,56597.0,56596.0,0.6943597]
[1725605928191,0.02871088,56597.0,56596.0,0.7053597]
[1725605928410,0.02871088,56597.0,56596.0,1.0707407]
[1725605929306,0.02871088,56597.0,56596.0,1.4341217]
[1725605929984,0.02871088,56597.0,56596.0,1.7875027]
[1725605930635,0.02871088,56597.0,56596.0,1.4341217]
[1725605933952,0.02871088,56597.0,56596.0,1.4241217]
[1725605934167,0.02871088,56597.0,56596.0,1.0707407]
[1725605939092,0.02871088,56597.0,56596.0,1.4341217]
[1725605939843,0.02871088,56597.0,56596.0,1.0807407]
[1725605940295,0.02871088,56597.0,56596.0,1.4341217]
[1725605941623,0.02871088,56597.0,56596.0,1.0707407]
[1725605942047,0.02871088,56597.0,56596.0,1.4241217]
[1725605942267,0.02871088,56597.0,56596.0,1.0707407]
[1725605942483,0.02871088,56597.0,56596.0,1.4341217]
[1725605942756,0.02871088,56597.0,56596.0,1.0807407]
[1725605942986,0.02871088,56597.0,56596.0,1.4341217]
[1725605957689,0.02771088,56597.0,56596.0,1.4231217]
[1725605958207,0.02871088,56597.0,56596.0,1.0717407]
[1725605958466,0.02871088,56597.0,56596.0,1.0617407]
[1725605958693,0.02871088,56597.0,56596.0,1.0757407]
[1725605959135,0.02871088,56597.0,56596.0,1.4391217]
[1725605959364,0.001,56597.0,56596.0,1.4391217]
[1725605959861,0.001,56597.0,56596.0,1.4291217]
[1725605960316,0.0171009,56597.0,56596.0,1.0757407]
[1725605960778,0.001,56597.0,56596.0,1.0857407]
[1725605961523,0.001,56597.0,56596.0,1.4391217]
[1725605962926,0.001,56597.0,56596.0,1.0757407]
[1725605963276,0.001,56597.0,56596.0,1.4291217]
[1725605963761,0.0169049,56597.0,56596.0,1.4291217]
[1725605971605,0.0169049,56597.0,56596.0,0.0440887]
[1725605971866,0.9333419,56597.0,56596.0,0.0440887]
[1725605972079,0.99399923,56597.0,56596.0,0.0440887]
[1725605972342,0.99399923,56597.0,56596.0,0.029632]
[1725605973041,0.99399923,56597.0,56596.0,0.015632]
[1725605973243,0.99399923,56597.0,56596.0,0.028632]
[1725605973459,0.99299923,56597.0,56596.0,0.014632]
[1725605973707,0.99299923,56597.0,56596.0,0.025632]
[1725605974164,0.99299923,56597.0,56596.0,0.014632]
[1725605974406,0.9323419,56597.0,56596.0,0.020632]
[1725605974620,0.9323419,56597.0,56596.0,0.007632]
[1725605974841,0.9323419,56597.0,56596.0,0.014632]
[1725605980808,0.916437,56597.0,56596.0,0.014632]
[1725605982471,1.04902929,56597.0,56596.0,0.014632]
[1725605982898,1.04902929,56597.0,56596.0,0.019314]
[1725605986091,1.04899572,56597.0,56596.0,0.019314]
[1725605987417,0.883437,56597.0,56596.0,0.019314]
[1725605988264,0.883437,56597.0,56596.0,0.03456935]
[1725605991073,0.883437,56597.0,56596.0,0.019314]
[1725605991416,1.36937072,56597.0,56596.0,0.019314]
[1725605992894,1.32773961,56597.0,56596.0,0.019314]
[1725605993341,1.48681007,56597.0,56596.0,0.019314]
[1725605994422,1.32773961,56597.0,56596.0,0.019314]
[1725605995940,1.29763961,56597.0,56596.0,0.019314]
[1725605996389,0.883437,56597.0,56596.0,0.019314]
[1725605996856,1.236812,56597.0,56596.0,0.019314]
[1725605999238,0.883437,56597.0,56596.0,0.019314]
[1725606000638,1.236812,56597.0,56596.0,0.019314]
[1725606000857,0.883437,56597.0,56596.0,0.019314]
[1725606001092,1.236812,56597.0,56596.0,0.019314]
[1725606001380,0.13250809,56598.0,56596.0,0.019314]
[1725606001655,0.25618554,56598.0,56597.0,0.0675]
[1725606001898,0.530062,56597.0,56596.0,0.009314]
[1725606002147,0.96293875,56597.0,56596.0,0.009314]
[1725606002393,1.236812,56597.0,56596.0,0.006314]
[1725606002638,0.883437,56597.0,56596.0,0.006314]
[1725606003138,1.04604509,56597.0,56596.0,0.017314]
[1725606003399,1.39942009,56597.0,56596.0,0.011314]
[1725606003641,1.39942009,56597.0,56596.0,0.006314]
[1725606003888,1.63571008,56597.0,56596.0,0.012314]
[1725606004143,2.30405463,56597.0,56596.0,0.012314]
[1725606004390,2.30605463,56597.0,56596.0,0.012314]
[1725606004884,2.0695,56593.0,56592.0,0.001632]
[1725606005132,0.883702,56580.0,56579.0,0.001632]
[1725606005353,0.96321885,56580.0,56579.0,0.001632]
[1725606005567,0.96321774,56580.0,56579.0,0.001632]
[1725606005801,0.63023219,56580.0,56579.0,0.001632]
[1725606006028,0.80697219,56580.0,56579.0,0.001632]
[1725606006272,0.0529959,56582.0,56581.0,0.176737]
[1725606006534,0.0529959,56582.0,56580.0,0.1493]
[1725606006535,0.0529959,56583.0,56582.0,0.530203]
[1725606006767,0.0529959,56588.0,56586.0,0.176721]
[1725606007000,0.0529959,56588.0,56586.0,0.0675]
[1725606007231,0.07949386,56588.0,56581.0,0.0675]
[1725606007457,0.07949386,56588.0,56579.0,0.029632]
[1725606007458,0.530221,56580.0,56579.0,0.029632]
[1725606007683,0.63624212,56580.0,56579.0,0.029632]
[1725606007916,0.98972312,56580.0,56579.0,0.015632]
[1725606008123,0.98972312,56580.0,56574.0,0.07945638]
[1725606008124,0.530269,56575.0,56574.0,0.07945638]
[1725606009265,0.5832352,56575.0,56574.0,0.07945638]
[1725606009687,0.61095308,56575.0,56574.0,0.09345638]
[1725606009917,1.29611288,56575.0,56574.0,0.014]
[1725606010141,1.58940921,56575.0,56574.0,0.014]
[1725606010375,1.96948389,56575.0,56574.0,0.014]
[1725606010620,1.96948389,56575.0,56574.0,0.028]
[1725606010621,1.88300762,56575.0,56574.0,0.028]
[1725606011057,1.52849462,56575.0,56574.0,0.014]
[1725606011276,1.237337,56573.0,56566.0,0.0804]
[1725606011487,1.337337,56573.0,56566.0,0.0804]
[1725606011724,1.337337,56573.0,56572.0,0.06914]
[1725606011725,0.983812,56573.0,56572.0,0.06914]
[1725606012404,1.03672286,56573.0,56572.0,0.06914]
[1725606012643,0.32967286,56573.0,56572.0,0.06914]
[1725606012961,0.001,56573.0,56572.0,0.14954]
[1725606013183,0.002,56573.0,56572.0,0.326305]
[1725606013419,0.002,56573.0,56572.0,0.679836]
[1725606013633,0.02771788,56575.0,56573.0,0.244262]
[1725606014062,0.02771788,56575.0,56574.0,0.176759]
[1725606015831,0.02771788,56575.0,56574.0,0.179759]
[1725606016464,0.02771788,56575.0,56574.0,0.180759]
[1725606017337,0.20447388,56575.0,56574.0,0.004]
[1725606017554,0.55798688,56575.0,56574.0,0.004]
[1725606017773,0.96441074,56575.0,56574.0,0.004]
[1725606018866,0.61089774,56575.0,56574.0,0.004]
[1725606019073,0.55798688,56575.0,56574.0,0.004]
[1725606019303,0.55798688,56575.0,56574.0,0.08779863]
[1725606019816,0.02771788,56575.0,56574.0,0.08779863]
[1725606020111,0.02771788,56575.0,56574.0,1.05199563]
[1725606020377,0.02771788,56575.0,56574.0,0.16819863]
[1725606020609,0.35349,56579.0,56574.0,0.16819863]
[1725606020610,0.353502,56577.0,56574.0,0.16819863]
[1725606020884,0.55798886,56575.0,56574.0,0.16719863]
[1725606021152,0.91150186,56575.0,56574.0,0.01929863]
[1725606021398,0.91150186,56575.0,56574.0,0.004]
[1725606021637,0.55798886,56575.0,56574.0,0.001]
[1725606022134,0.55798886,56575.0,56574.0,0.01729863]
[1725606022400,1.40787532,56575.0,56574.0,0.02829863]
[1725606022638,1.04850186,56575.0,56574.0,0.011]
[1725606022885,0.530287,56573.0,56572.0,0.00164]
[1725606023113,1.08961031,56573.0,56572.0,0.00164]
[1725606024193,0.984812,56573.0,56572.0,0.01264]
[1725606024895,0.984812,56573.0,56572.0,0.02564]
[1725606027142,1.06411639,56573.0,56572.0,0.02564]
[1725606027359,0.984812,56573.0,56572.0,0.02564]
[1725606028506,0.101,56573.0,56572.0,0.02564]
[1725606028726,0.001,56573.0,56572.0,0.19254434]
[1725606029159,0.101,56573.0,56572.0,0.19254434]
[1725606031956,0.101,56573.0,56572.0,0.04194434]
[1725606031957,0.177762,56573.0,56572.0,0.04194434]
[1725606032185,0.6841687,56573.0,56572.0,0.04194434]
[1725606032411,1.06411656,56573.0,56572.0,0.04194434]
[1725606032812,1.06411656,56573.0,56572.0,0.02564]
[1725606035448,0.984812,56573.0,56572.0,0.02564]
[1725606035663,1.06415446,56573.0,56572.0,0.02564]
[1725606036100,0.984812,56573.0,56572.0,0.02564]
[1725606036339,1.04607073,56573.0,56572.0,0.02564]
[1725606036917,0.77189849,56573.0,56572.0,0.02564]
[1725606037097,0.71063976,56573.0,56572.0,0.02564]
[1725606037310,0.77190717,56573.0,56572.0,0.02564]
[1725606037570,1.12543891,56573.0,56572.0,0.02564]
[1725606037781,1.08307941,56573.0,56572.0,0.02564]
[1725606038410,1.43660441,56573.0,56572.0,0.02564]
[1725606038641,1.21529663,56573.0,56572.0,0.02564]
[1725606038866,1.56882163,56573.0,56572.0,0.02564]
[1725606042102,1.58481491,56573.0,56572.0,0.02564]
[1725606042327,1.45259769,56573.0,56572.0,0.02564]
[1725606044103,1.81612269,56573.0,56572.0,0.02564]
[1725606044318,2.26223562,56573.0,56572.0,0.02564]
[1725606044536,1.6114408,56573.0,56572.0,0.02564]
[1725606044743,1.6214408,56573.0,56572.0,0.02564]
[1725606044960,1.46259769,56573.0,56572.0,0.02564]
[1725606045227,1.46159769,56573.0,56572.0,0.00164]
[1725606045448,1.41559769,56573.0,56572.0,0.00964]
[1725606045874,1.41559769,56573.0,56572.0,0.00864]
[1725606046079,1.41459769,56573.0,56572.0,0.00164]
[1725606046287,1.41559769,56573.0,56572.0,0.00164]
[1725606046508,1.04607941,56573.0,56572.0,0.00164]
[1725606046724,1.04607941,56573.0,56572.0,0.06844]
[1725606047802,1.39960441,56573.0,56572.0,0.07244]
[1725606048010,1.55748143,56573.0,56572.0,0.07244]
[1725606048228,1.8462543,56573.0,56572.0,0.07544]
[1725606048640,1.4927293,56573.0,56572.0,0.07544]
[1725606050351,1.49276532,56573.0,56572.0,0.07544]
[1725606051428,1.23450871,56573.0,56572.0,0.07544]
[1725606051633,0.7868228,56573.0,56572.0,0.07544]
[1725606052269,0.9635848,56573.0,56572.0,0.07544]
[1725606054875,0.983812,56573.0,56572.0,0.07544]
[1725606056362,1.39865849,56573.0,56572.0,0.07544]
[1725606056578,1.04513349,56573.0,56572.0,0.07544]
[1725606056807,1.04513349,56573.0,56572.0,0.00864]
[1725606060288,0.630287,56573.0,56572.0,0.00864]
[1725606060510,0.630287,56573.0,56572.0,0.08194]
[1725606060964,0.630287,56573.0,56572.0,0.09815546]
[1725606061171,0.276762,56573.0,56572.0,0.09815546]
[1725606061378,0.76301769,56573.0,56572.0,0.09815546]
[1725606061581,0.630287,56573.0,56572.0,0.09815546]
[1725606061790,0.01572941,56574.0,56573.0,0.176762]
[1725606062025,0.16045001,56575.0,56574.0,0.250059]
[1725606062265,0.02771986,56575.0,56574.0,1.06360675]
[1725606062501,0.02771986,56575.0,56574.0,1.41712575]
[1725606062945,0.000816,56579.0,56578.0,0.883735]
[1725606063155,0.000816,56579.0,56578.0,1.41702733]
[1725606063619,0.000816,56579.0,56578.0,1.06353333]
[1725606063842,0.000816,56579.0,56578.0,0.17979833]
[1725606064267,0.000816,56579.0,56578.0,0.35654533]
[1725606064476,0.000816,56579.0,56578.0,0.71003933]
[1725606064710,0.000816,56579.0,56578.0,0.72403933]
[1725606064923,0.000816,56579.0,56578.0,0.71003933]
[1725606065350,0.000816,56579.0,56578.0,0.37054533]
[1725606065573,0.001816,56579.0,56578.0,0.19379833]
[1725606065782,0.001816,56579.0,56578.0,0.37054533]
[1725606065995,0.000816,56579.0,56578.0,0.37054533]
[1725606066631,0.000816,56579.0,56578.0,0.20579833]
[1725606066850,0.531048,56579.0,56578.0,0.11549833]
[1725606067320,0.884536,56579.0,56578.0,0.012]
[1725606067544,0.99070973,56579.0,56578.0,0.026]
[1725606067764,1.238024,56579.0,56578.0,0.026]
[1725606067975,1.348024,56579.0,56578.0,0.014]
[1725606068202,1.424828,56579.0,56578.0,0.014]
[1725606068435,1.779316,56579.0,56578.0,0.026]
[1725606068658,2.22087279,56579.0,56578.0,0.026]
[1725606068872,2.22087279,56579.0,56572.0,0.00164]
[1725606068873,1.237337,56573.0,56572.0,0.00164]
[1725606069082,1.83983679,56573.0,56572.0,0.00164]
[1725606069304,1.55748718,56573.0,56572.0,0.00164]
[1725606069512,1.42617628,56573.0,56572.0,0.00164]
[1725606069773,1.55748718,56573.0,56572.0,0.00164]
[1725606070006,1.39845294,56573.0,56572.0,0.00164]
[1725606070452,1.55748718,56573.0,56572.0,0.00164]
[1725606070671,1.84034616,56573.0,56572.0,0.00164]
[1725606071089,1.04492794,56573.0,56572.0,0.00164]
[1725606071301,0.103,56573.0,56572.0,0.00164]
[1725606071515,0.279762,56573.0,56572.0,0.00164]
[1725606071734,0.40932783,56573.0,56572.0,0.00164]
[1725606071941,0.276762,56573.0,56572.0,0.01785546]
[1725606072152,0.41331577,56573.0,56572.0,0.01785546]
[1725606072369,0.41231577,56573.0,56572.0,0.01785546]
[1725606072577,0.630287,56573.0,56572.0,0.01785546]
[1725606072798,0.65800859,56573.0,56572.0,0.01064]
[1725606073017,0.630287,56573.0,56572.0,0.01064]
[1725606073230,0.2325549,56573.0,56572.0,0.11245546]
[1725606073446,0.2325549,56573.0,56572.0,0.18485546]
[1725606074093,0.276762,56573.0,56572.0,0.18485546]
[1725606074300,0.276762,56573.0,56572.0,0.17585546]
[1725606074513,0.276762,56573.0,56572.0,0.18485546]
[1725606074726,0.630287,56573.0,56572.0,0.18485546]
[1725606074939,0.40931812,56573.0,56572.0,0.18485546]
[1725606075143,0.40932025,56573.0,56572.0,0.18185546]
[1725606075365,0.41013625,56573.0,56572.0,0.18185546]
[1725606075580,0.631103,56573.0,56572.0,0.18585546]
[1725606075793,0.12853756,56573.0,56572.0,0.18585546]
[1725606076059,0.26109193,56573.0,56572.0,0.18585546]
[1725606076242,0.26109193,56573.0,56572.0,0.36262046]
[1725606076243,0.02853756,56573.0,56572.0,0.36262046]
[1725606076464,0.13458212,56573.0,56572.0,0.36262046]
[1725606077516,0.02853756,56573.0,56572.0,0.36262046]
[1725606078585,0.13458212,56573.0,56572.0,0.36262046]
[1725606078785,0.02853756,56573.0,56572.0,0.36262046]
[1725606078989,0.13458212,56573.0,56572.0,0.36262046]
[1725606079201,0.02853756,56573.0,56572.0,0.71615146]
[1725606079415,0.10804784,56573.0,56572.0,0.71615146]
[1725606079623,0.02853756,56573.0,56572.0,0.71615146]
[1725606079844,0.000816,56573.0,56572.0,0.71615146]
[1725606080047,0.000816,56573.0,56572.0,1.06968246]
[1725606080256,0.000816,56573.0,56572.0,1.42321346]
[1725606081915,0.05382919,56573.0,56572.0,1.06968246]
[1725606082792,0.000816,56573.0,56572.0,1.06968246]
[1725606083838,0.05382023,56573.0,56572.0,1.06968246]
[1725606084255,0.02853523,56573.0,56572.0,1.06968246]
[1725606084461,0.08153946,56573.0,56572.0,1.06968246]
[1725606084686,0.02853523,56573.0,56572.0,1.42321346]
[1725606084919,0.02433523,56573.0,56572.0,1.77674446]